bitfinex/quotes_ETHUSD_20250326
["timestamp","ask_amount","ask_price","bid_price","bid_amount"]
[1743022966393,11.02378,2014.6,2014.4,2.00270085]
[1743022966587,15.9877,2014.6,2014.4,2.00270085]
[1743022966887,11.02378,2014.6,2014.5,2.00270085]
[1743022967086,6.06,2014.6,2014.5,2.00270085]
[1743022969389,9.92735,2014.7,2014.5,2.00270085]
[1743022969790,5.01331218,2014.6,2014.5,2.00270085]
[1743022969993,4.96376,2014.6,2014.5,2.00270085]
[1743022970996,5.01331218,2014.6,2014.5,2.00270085]
[1743022971501,4.96364,2014.7,2014.5,2.00270085]
[1743022971796,5.01319218,2014.7,2014.5,2.00270085]
[1743022971996,9.97691218,2014.7,2014.5,2.00270085]
[1743022972190,4.96376,2014.6,2014.5,2.00270085]
[1743022972375,4.96376,2014.6,2014.4,2.00270085]
[1743022973285,5.01331218,2014.6,2014.4,2.00270085]
[1743022973861,0.14878009,2014.5,2014.4,2.00270085]
[1743022975293,9.92732,2014.7,2014.4,2.00270085]
[1743022975501,9.92732,2014.7,2014.5,2.00270085]
[1743022976813,4.96376,2014.6,2014.5,2.00270085]
[1743022977923,5.01331218,2014.6,2014.2,5.79551]
[1743022978116,5.01331218,2014.6,2014.3,2.00270085]
[1743022978117,4.9641,2014.5,2014.3,2.00270085]
[1743022978321,6.04429122,2014.5,2014.3,2.00270085]
[1743022978709,0.04955218,2014.4,2014.2,2.00270085]
[1743022979131,4.9645,2014.3,2014.2,2.00270085]
[1743022979418,4.96489,2014.2,2014.1,2.00270085]
[1743022979714,5.01444218,2014.2,2014.1,2.00270085]
[1743022980312,0.04955218,2014.2,2014.1,2.00270085]
[1743022980511,5.01439218,2014.2,2014.1,2.00270085]
[1743022980712,4.96452,2014.3,2014.1,2.00270085]
[1743022981020,5.01407218,2014.3,2014.2,2.00270085]
[1743022983590,11.0590184,2014.3,2014.1,2.00270085]
[1743022983791,11.00946622,2014.3,2014.1,2.00270085]
[1743022985224,4.96475,2014.2,2013.9,14.5]
[1743022985423,4.96475,2014.2,2014.1,2.00270085]
[1743022985721,4.96452,2014.3,2014.1,2.00270085]
[1743022985895,5.01407218,2014.3,2014.2,2.00270085]
[1743022986094,6.0943574,2014.3,2014.2,2.00270085]
[1743022986495,6.04480522,2014.3,2014.2,2.00270085]
[1743022986691,4.96452,2014.3,2014.2,2.00270085]
[1743022987225,4.91452,2014.3,2014.2,2.00270085]
[1743022987620,4.96428,2014.4,2014.2,2.00270085]
[1743022987825,5.01364218,2014.5,2014.3,2.82360085]
[1743022988028,4.96409,2014.5,2014.4,2.00270085]
[1743022988196,11.02384,2014.6,2014.4,2.00270085]
[1743022988998,0.14953075,2014.5,2014.4,2.00270085]
[1743022989198,0.19908293,2014.5,2014.4,2.00270085]
[1743022990141,5.16309293,2014.5,2014.4,2.00270085]
[1743022990293,5.16309293,2014.5,2014.3,2.00270085]
[1743022990617,4.96486,2014.2,2014.0,2.00270085]
[1743022990814,5.01441218,2014.2,2014.0,2.00270085]
[1743022991016,5.01441218,2014.2,2013.9,9.08193964]
[1743022991216,0.14953075,2014.1,2013.9,9.08193964]
[1743022991420,0.14953075,2014.1,2013.9,4.11645964]
[1743022991638,4.96486,2014.2,2013.9,4.11645964]
[1743022991807,5.01441218,2014.2,2013.9,4.11645964]
[1743022992011,0.14747871,2014.1,2013.9,4.11645964]
[1743022992210,5.01441218,2014.2,2013.9,4.11645964]
[1743022992397,5.01441218,2014.2,2013.9,3.33935964]
[1743022992745,0.14747871,2014.1,2013.9,3.33935964]
[1743022993040,5.01441218,2014.2,2013.9,3.33935964]
[1743022993545,5.11247871,2014.1,2013.9,3.33935964]
[1743022993714,5.16203089,2014.1,2013.9,3.33935964]
[1743022994411,0.14747871,2014.1,2013.9,3.33935964]
[1743022994607,0.04955218,2014.2,2014.0,3.33935964]
[1743022994799,0.14747871,2014.1,2014.0,3.33935964]
[1743022994996,4.96452,2014.3,2014.0,3.33935964]
[1743022995532,0.14747871,2014.2,2014.0,3.33935964]
[1743022996631,5.16181089,2014.2,2014.0,3.33935964]
[1743022996932,0.19703089,2014.2,2014.0,3.33935964]
[1743022997429,0.14747871,2014.2,2014.0,3.33935964]
[1743022997598,0.19703089,2014.2,2014.0,3.33935964]
[1743022997796,5.16178089,2014.2,2014.0,3.33935964]
[1743022998134,5.16178089,2014.2,2013.9,11.54068587]
[1743022998734,5.16178089,2014.2,2013.9,26.04068587]
[1743023000443,5.16178089,2014.2,2013.9,11.54068587]
[1743023001345,5.16178089,2014.2,2013.8,22.80505964]
[1743023001561,4.96512,2014.1,2013.8,22.80505964]
[1743023001906,5.01467218,2014.1,2013.8,22.80505964]
[1743023002204,0.14747871,2014.0,2013.8,22.80505964]
[1743023003503,0.14747871,2014.0,2013.8,27.77064964]
[1743023003733,0.8021,2014.4,2014.1,4.96485]
[1743023004036,5.01363218,2014.5,2014.1,13.26902964]
[1743023004334,0.04955218,2014.5,2014.2,4.96462]
[1743023004548,9.92773,2014.6,2014.2,4.96462]
[1743023004736,0.04955218,2014.5,2014.2,4.96462]
[1743023004941,0.04955218,2014.5,2014.3,1.32687996]
[1743023005748,5.01360218,2014.5,2014.3,1.32687996]
[1743023008429,0.8039,2014.7,2014.3,9.6306796]
[1743023008649,11.0233,2014.8,2014.4,3.33935964]
[1743023008811,5.01320218,2014.7,2014.3,10.4276796]
[1743023009016,9.97684218,2014.7,2014.4,1.53923996]
[1743023009216,9.92729,2014.7,2014.4,1.53923996]
[1743023009416,4.96364,2014.7,2014.4,1.53923996]
[1743023009618,5.01319218,2014.7,2014.4,1.53923996]
[1743023013246,10.4582,2014.9,2014.4,9.8428196]
[1743023013545,0.04955218,2014.8,2014.5,8.30326964]
[1743023013712,4.96179,2015.5,2014.8,4.96313]
[1743023013918,4.96217,2015.3,2014.9,8.30230964]
[1743023014246,0.04955218,2015.2,2014.9,4.96295]
[1743023014614,5.01183218,2015.2,2014.9,8.30230964]
[1743023014811,9.97431218,2015.2,2014.9,3.33935964]
[1743023015123,9.92476,2015.2,2014.9,3.33935964]
[1743023015334,0.04955218,2015.1,2014.9,3.33935964]
[1743023015948,5.01213218,2015.1,2014.9,3.33935964]
[1743023016246,0.769,2015.4,2015.0,3.33935964]
[1743023016414,5.01177218,2015.3,2015.0,3.33935964]
[1743023016612,4.96187,2015.4,2015.2,3.33935964]
[1743023016815,0.04955218,2015.4,2015.2,3.33935964]
[1743023017022,5.01132218,2015.5,2015.3,3.33935964]
[1743023017548,4.96177,2015.5,2015.3,3.33935964]
[1743023018113,5.01132218,2015.5,2015.3,3.33935964]
[1743023018912,0.13972107,2015.4,2015.3,3.33935964]
[1743023019446,5.10151107,2015.4,2015.2,3.33935964]
[1743023019647,5.10151107,2015.4,2015.2,6.29589677]
[1743023020721,4.96204,2015.3,2015.2,2.95653713]
[1743023020922,0.14472866,2015.3,2015.2,2.95653713]
[1743023021450,5.01134218,2015.4,2015.2,2.95653713]
[1743023021622,0.14462856,2015.3,2015.2,2.95653713]
[1743023021820,5.01134218,2015.4,2015.2,2.95653713]
[1743023022022,0.14462856,2015.3,2015.2,2.95653713]
[1743023022222,0.04955218,2015.4,2015.2,6.29589677]
[1743023022447,9.66433,2015.6,2015.3,10.00543632]
[1743023022618,9.71388218,2015.6,2015.3,10.00543632]
[1743023023065,14.67535218,2015.6,2015.3,5.04347632]
[1743023023258,14.6258,2015.6,2015.3,5.04347632]
[1743023023961,14.62582,2015.6,2015.3,5.04347632]
[1743023024190,9.66433,2015.6,2015.4,1.00056063]
[1743023024366,14.67535218,2015.6,2015.4,1.00056063]
[1743023024570,14.6258,2015.6,2015.4,1.00056063]
[1743023024773,9.66433,2015.6,2015.4,1.00056063]
[1743023024923,4.96154,2015.5,2015.4,1.00056063]
[1743023025324,5.01109218,2015.5,2015.4,1.00056063]
[1743023026846,5.01109218,2015.5,2015.3,3.33935964]
[1743023028168,5.01109218,2015.5,2015.2,8.30160964]
[1743023029266,0.04955218,2015.5,2015.2,3.33935964]
[1743023029482,4.96198,2015.4,2015.1,4.15965964]
[1743023029640,4.96198,2015.4,2015.1,7.0181656]
[1743023029839,9.92392,2015.4,2015.1,7.0181656]
[1743023030051,4.96194,2015.4,2015.1,7.0181656]
[1743023031183,4.96194,2015.4,2015.1,4.15965964]
[1743023031384,4.96194,2015.4,2015.1,18.65965964]
[1743023032376,4.96194,2015.4,2015.2,3.33935964]
[1743023032874,9.92386,2015.4,2015.1,18.65965964]
[1743023033243,4.96192,2015.4,2015.1,18.65965964]
[1743023033445,9.92388,2015.4,2015.1,21.1232905]
[1743023033866,0.14903431,2015.3,2015.1,21.1232905]
[1743023034067,4.96192,2015.4,2015.1,21.1232905]
[1743023034372,0.14903431,2015.3,2015.1,21.1232905]
[1743023034774,4.96192,2015.4,2015.1,21.1232905]
[1743023034973,0.14898426,2015.2,2015.1,21.1232905]
[1743023035173,4.96192,2015.4,2015.1,21.1232905]
[1743023035374,0.14898426,2015.2,2015.1,21.1232905]
[1743023035577,4.96204,2015.3,2015.1,21.1232905]
[1743023035749,0.14898426,2015.2,2015.1,21.1232905]
[1743023036574,0.14898426,2015.2,2015.1,26.0858205]
[1743023036747,0.14898426,2015.2,2015.1,21.1232905]
[1743023036948,4.96204,2015.3,2015.1,21.1232905]
[1743023037247,0.14898426,2015.2,2015.1,21.1232905]
[1743023038581,0.12898426,2015.2,2015.1,21.1232905]
[1743023039782,0.12898426,2015.2,2015.1,20.3029905]
[1743023040177,5.09126426,2015.2,2014.8,5.76533]
[1743023040380,5.09126426,2015.2,2014.9,8.30236964]
[1743023040752,5.09126426,2015.2,2014.9,22.80236964]
[1743023041364,0.12898426,2015.2,2014.9,27.76523964]
[1743023041882,5.09129426,2015.2,2014.9,22.80222964]
[1743023042090,5.09129426,2015.2,2014.9,25.99709923]
[1743023042290,0.12898426,2015.2,2014.9,30.96000923]
[1743023042451,0.12898426,2015.2,2014.9,30.95997923]
[1743023042651,0.12898426,2015.2,2014.9,25.99709923]
[1743023042853,5.09127426,2015.2,2014.9,25.99709923]
[1743023046500,5.09127426,2015.2,2014.9,22.65773959]
[1743023046794,5.09127426,2015.2,2014.9,25.99709923]
[1743023047795,5.14082644,2015.2,2014.9,25.99709923]
[1743023049093,5.14082644,2015.2,2014.9,21.03422923]
[1743023049300,4.96263,2015.1,2014.9,14.5]
[1743023049600,0.14656685,2015.0,2014.9,14.5]
[1743023049896,5.78284218,2015.2,2014.9,14.5]
[1743023050098,0.14656685,2015.1,2014.9,14.5]
[1743023050298,0.14656685,2015.1,2014.9,22.65789159]
[1743023050907,0.14656685,2015.1,2015.0,2.00144849]
[1743023059929,5.10919685,2015.1,2014.8,5.7654]
[1743023060211,10.07190685,2015.1,2014.9,2.00144849]
[1743023060425,10.07188685,2015.1,2014.9,2.00144849]
[1743023060712,5.10919685,2015.1,2014.9,2.00144849]
[1743023062207,10.07192685,2015.1,2014.9,2.00144849]
[1743023062390,5.10919685,2015.1,2014.9,2.00144849]
[1743023062785,10.07189685,2015.1,2014.9,2.00144849]
[1743023062986,5.10919685,2015.1,2014.9,2.00144849]
[1743023066624,5.15874903,2015.1,2014.9,2.00144849]
[1743023067107,4.96277,2015.0,2014.9,2.00144849]
[1743023067420,0.13412355,2015.0,2014.9,2.00144849]
[1743023068118,5.09689355,2015.0,2014.9,2.00144849]
[1743023074428,0.7955,2014.9,2014.4,0.8148]
[1743023074624,0.7955,2014.9,2014.0,6.12]
[1743023074625,4.96425,2014.4,2014.3,2.00144849]
[1743023074919,4.96445,2014.4,2014.3,2.00144849]
[1743023075121,5.09757238,2014.4,2014.3,2.00144849]
[1743023075520,0.13312238,2014.4,2014.3,2.00144849]
[1743023076326,5.09740238,2014.4,2014.1,6.35682938]
[1743023076520,5.09740238,2014.4,2014.3,2.00144849]
[1743023076694,0.13312238,2014.4,2014.3,2.00144849]
[1743023080725,0.13312238,2014.4,2014.3,16.50144849]
[1743023081133,9.97728218,2014.6,2014.3,16.50144849]
[1743023081302,4.9638,2014.6,2014.5,2.00144849]
[1743023081630,5.01335218,2014.6,2014.5,2.00144849]
[1743023084129,5.01335218,2014.6,2014.5,16.50144849]
[1743023084532,5.01335218,2014.6,2014.5,2.00144849]
[1743023084737,4.96412,2014.5,2014.4,2.00144849]
[1743023085229,4.96412,2014.5,2014.4,16.50144849]
[1743023085735,4.96412,2014.5,2014.4,2.00144849]
[1743023086530,4.9638,2014.6,2014.4,2.00144849]
[1743023086832,4.9638,2014.6,2014.5,2.00144849]
[1743023087222,5.01335218,2014.6,2014.5,2.00144849]
[1743023088537,5.01335218,2014.6,2014.4,2.00144849]
[1743023088701,4.96313,2014.9,2014.5,6.96535849]
[1743023088904,4.96313,2014.9,2014.8,2.00144849]
[1743023089334,4.96313,2014.9,2014.7,2.00144849]
[1743023089541,5.01268218,2014.9,2014.7,2.00144849]
[1743023090534,4.96327,2014.8,2014.7,2.00144849]
[1743023091938,4.96313,2014.9,2014.7,2.00144849]
[1743023092107,4.96313,2014.9,2014.8,2.00144849]
[1743023094030,10.05790038,2014.9,2014.7,2.00144849]
[1743023094308,4.96388,2014.6,2014.2,5.77891]
[1743023094537,4.96409,2014.5,2014.3,2.00144849]
[1743023094717,9.92832,2014.5,2014.2,3.8142]
[1743023094927,0.13157038,2014.4,2014.3,2.00144849]
[1743023095937,5.84294218,2014.6,2014.3,2.00144849]
[1743023096137,0.13016859,2014.4,2014.2,10.74345]
[1743023096441,5.84294218,2014.6,2014.3,10.3014558]
[1743023096645,5.84294218,2014.6,2014.4,2.00144849]
[1743023097033,5.84294218,2014.6,2014.3,11.63774601]
[1743023097441,5.84294218,2014.6,2014.3,6.67328601]
[1743023099263,4.96414,2014.5,2014.3,14.5]
[1743023100239,9.92833,2014.5,2014.3,14.5]
[1743023100749,4.96524,2014.1,2013.8,0.7918]
[1743023100916,4.96543,2014.0,2013.8,1.367587]
[1743023101116,4.96543,2014.0,2013.8,4.7053257]
[1743023101351,4.96543,2014.0,2013.9,14.5]
[1743023101643,4.96504,2014.1,2013.9,17.8377387]
[1743023101859,9.92987,2014.2,2013.9,20.25485127]
[1743023102030,4.96491,2014.2,2013.9,20.25485127]
[1743023102722,9.92983,2014.2,2013.9,20.25485127]
[1743023102917,9.92984,2014.2,2013.9,20.25485127]
[1743023103153,4.96507,2014.1,2013.9,20.25485127]
[1743023103448,4.96459,2014.3,2014.0,5.28045179]
[1743023103621,4.96446,2014.4,2014.2,3.3377387]
[1743023104242,5.01401218,2014.4,2014.3,14.5]
[1743023105155,4.96446,2014.4,2014.3,14.5]
[1743023105926,4.96446,2014.4,2014.1,0.7693]
[1743023106127,4.96446,2014.4,2014.1,2.46538667]
[1743023106355,9.92893,2014.4,2014.1,2.46538667]
[1743023106552,4.96446,2014.4,2014.1,2.46538667]
[1743023106927,4.96446,2014.4,2014.1,20.30312537]
[1743023107726,9.92818,2014.5,2014.1,25.26793537]
[1743023108057,4.96401,2014.5,2014.2,5.86453224]
[1743023108360,5.01356218,2014.5,2014.2,5.86453224]
[1743023108657,9.97773218,2014.5,2014.2,5.86453224]
[1743023108841,4.96387,2014.6,2014.3,3.3377387]
[1743023109047,0.12921721,2014.4,2014.3,8.3021787]
[1743023109260,4.96387,2014.6,2014.3,11.40845692]
[1743023109445,0.12851608,2014.4,2014.3,11.40845692]
[1743023109645,5.01342218,2014.6,2014.3,11.40845692]
[1743023109850,0.12851608,2014.4,2014.3,11.40845692]
[1743023110044,5.01342218,2014.6,2014.3,11.40845692]
[1743023110260,0.12851608,2014.4,2014.3,11.40845692]
[1743023110461,5.01342218,2014.6,2014.3,8.07071822]
[1743023110655,0.12851608,2014.4,2014.2,8.3022487]
[1743023110870,4.96401,2014.5,2014.2,8.3022487]
[1743023111065,0.12851608,2014.3,2014.2,8.8522487]
[1743023111361,4.96401,2014.5,2014.2,23.3522487]
[1743023111859,0.12821558,2014.4,2014.2,22.8022487]
[1743023112169,0.12821558,2014.4,2014.2,25.65590257]
[1743023113362,0.12821558,2014.4,2014.2,6.19139257]
[1743023113931,0.12821558,2014.4,2014.2,11.15613257]
[1743023114844,0.12821558,2014.4,2014.2,6.19139257]
[1743023116780,0.12821558,2014.4,2014.2,11.15609257]
[1743023117444,0.12821558,2014.4,2014.2,25.65609257]
[1743023117642,0.12821558,2014.4,2014.2,20.69139257]
[1743023117852,5.09247558,2014.4,2014.2,20.69139257]
[1743023118868,5.09247558,2014.4,2014.2,19.35658612]
[1743023119437,5.09247558,2014.4,2014.3,2.00293225]
[1743023120167,0.12821558,2014.4,2014.3,2.00293225]
[1743023120365,0.12821558,2014.4,2014.3,5.10720246]
[1743023120565,0.12821558,2014.4,2014.3,2.00293225]
[1743023120865,0.12821558,2014.4,2014.3,16.50293225]
[1743023127174,5.09246558,2014.4,2014.3,16.50293225]
[1743023127374,5.09246558,2014.4,2014.3,2.00293225]
[1743023127893,5.09246558,2014.4,2014.3,16.50293225]
[1743023129315,0.12821558,2014.4,2014.3,16.50293225]
[1743023130907,0.12821558,2014.4,2014.3,2.00293225]
[1743023131402,0.12821558,2014.4,2014.3,16.50293225]
[1743023136203,0.12821558,2014.4,2014.3,14.5]
[1743023136595,1.00156776,2014.4,2014.1,0.98706595]
[1743023136785,4.96527,2014.0,2013.8,2.00293225]
[1743023136983,5.09345516,2013.9,2013.6,0.99185721]
[1743023137194,5.09345516,2013.9,2013.7,14.5]
[1743023137195,4.96577,2013.8,2013.7,14.5]
[1743023137404,5.09273342,2013.8,2013.7,16.50293225]
[1743023137579,5.09273342,2013.8,2013.7,14.5]
[1743023138201,5.09273342,2013.8,2013.6,2.00293225]
[1743023138577,5.09273342,2013.8,2013.6,16.50293225]
[1743023138778,0.12696342,2013.8,2013.7,2.00293225]
[1743023139711,5.78887,2014.1,2013.7,9.77489531]
[1743023139923,5.78887,2014.1,2013.9,2.00293225]
[1743023140634,4.96499,2014.1,2014.0,2.00293225]
[1743023140924,4.96499,2014.1,2013.9,3.33910181]
[1743023141506,4.96499,2014.1,2013.9,14.5]
[1743023142111,9.93017,2014.1,2013.9,14.5]
[1743023142309,4.96499,2014.1,2013.9,14.5]
[1743023147313,4.96499,2014.1,2013.8,3.33910181]
[1743023147812,4.96499,2014.1,2013.8,17.83910181]
[1743023148129,4.96499,2014.1,2013.8,22.80480181]
[1743023148291,4.96477,2014.2,2013.8,25.85749058]
[1743023148615,9.97924218,2014.2,2013.8,25.85749058]
[1743023148818,9.92969,2014.2,2013.8,25.85749058]
[1743023149115,4.96477,2014.2,2013.8,25.85749058]
[1743023149336,5.01432218,2014.2,2013.8,26.66609058]
[1743023151030,4.96508,2014.1,2013.8,21.70039058]
[1743023151417,4.96477,2014.2,2013.8,26.66608058]
[1743023151612,5.01432218,2014.2,2013.8,23.61339181]
[1743023153822,0.12511001,2014.1,2013.8,23.61339181]
[1743023154022,5.01432218,2014.2,2013.8,23.61339181]
[1743023154326,0.12511001,2014.1,2013.8,23.61339181]
[1743023154725,9.92968,2014.2,2013.8,23.61339181]
[1743023155221,0.12511001,2014.1,2013.8,23.61339181]
[1743023155427,5.01432218,2014.2,2013.8,26.47132499]
[1743023155595,0.12511001,2014.1,2013.8,26.47132499]
[1743023155797,0.8203,2014.3,2014.0,8.30422181]
[1743023156138,0.12511001,2014.2,2014.1,3.33910181]
[1743023156301,0.12511001,2014.2,2014.0,8.30422181]
[1743023156501,9.92874,2014.4,2014.1,3.33910181]
[1743023156712,0.12511001,2014.1,2014.0,8.30422181]
[1743023156905,9.92874,2014.4,2014.0,8.30422181]
[1743023157424,0.12511001,2014.3,2014.0,8.30422181]
[1743023157609,9.92874,2014.4,2014.0,8.30422181]
[1743023157810,0.12571117,2014.3,2014.0,8.30422181]
[1743023158010,5.01409218,2014.3,2013.9,4.96548]
[1743023158210,0.12571117,2014.2,2013.9,8.30458181]
[1743023159428,0.17526335,2014.2,2013.9,22.80458181]
[1743023161834,0.17526335,2014.2,2013.9,8.30458181]
[1743023162931,0.17526335,2014.2,2014.0,2.00352283]
[1743023164814,0.12571117,2014.2,2014.0,2.00352283]
[1743023167946,0.7722,2014.1,2014.0,2.00352283]
[1743023168148,0.7722,2013.0,2012.5,0.77456107]
[1743023168445,6.06,2013.3,2012.9,2.00352283]
[1743023168646,6.06,2013.3,2012.9,0.7587]
[1743023168647,4.9677,2013.0,2012.9,0.7587]
[1743023168849,4.9682,2012.8,2012.6,14.6167669]
[1743023169019,5.73993,2013.0,2012.6,19.5854469]
[1743023169221,0.11818284,2012.9,2012.6,26.55741973]
[1743023169539,0.11818284,2012.9,2012.7,2.00352283]
[1743023170249,0.11818284,2012.9,2012.8,2.00352283]
[1743023170563,11.81547,2013.3,2012.9,4.96789]
[1743023171145,16.78267,2013.3,2012.9,4.96789]
[1743023171539,10.72267,2013.3,2012.9,4.96789]
[1743023171743,10.72263,2013.3,2012.9,4.96789]
[1743023172531,0.7884,2013.3,2013.0,14.5]
[1743023175439,4.96721,2013.2,2013.0,14.5]
[1743023175619,4.96721,2013.2,2012.8,8.31065142]
[1743023176017,4.96756,2013.1,2012.7,1.01127453]
[1743023176222,4.96756,2013.1,2012.7,8.31091142]
[1743023176460,4.96756,2013.1,2012.7,13.27922142]
[1743023176660,9.93525,2013.1,2012.7,8.31088142]
[1743023176962,4.96756,2013.1,2012.7,8.31088142]
[1743023177318,6.1771047,2013.1,2012.8,3.34257142]
[1743023178944,6.339487,2013.2,2012.9,3.34257142]
[1743023179322,6.339487,2013.2,2013.0,3.34257142]
[1743023179621,11.306857,2013.2,2012.9,3.34257142]
[1743023180256,4.96748,2013.1,2012.9,3.34257142]
[1743023180433,4.96748,2013.1,2012.8,8.31065142]
[1743023181873,6.339487,2013.2,2012.8,8.31065142]
[1743023182031,4.96746,2013.1,2012.8,8.31065142]
[1743023182231,11.306867,2013.2,2012.8,8.31065142]
[1743023183853,0.1137201,2013.1,2012.8,8.31065142]
[1743023184057,11.306867,2013.2,2012.8,8.31065142]
[1743023184361,0.1137201,2013.1,2012.8,8.31065142]
[1743023184762,11.306857,2013.2,2012.8,8.31065142]
[1743023184951,0.1137201,2013.0,2012.8,8.31065142]
[1743023185139,11.306857,2013.2,2012.8,8.31065142]
[1743023185330,0.1137201,2012.9,2012.8,8.31065142]
[1743023185525,6.339487,2013.2,2012.8,8.31065142]
[1743023185756,0.1137201,2012.9,2012.8,8.31065142]
[1743023185942,6.339487,2013.2,2012.8,8.31065142]
[1743023186142,0.1137201,2012.9,2012.8,8.31065142]
[1743023186342,11.306917,2013.2,2012.8,8.31065142]
[1743023186541,0.1137201,2012.9,2012.8,8.31065142]
[1743023186763,11.306917,2013.2,2012.8,8.31065142]
[1743023186965,0.1137201,2012.9,2012.8,8.31065142]
[1743023187563,11.306877,2013.2,2012.8,8.31065142]
[1743023187763,0.1137201,2012.9,2012.8,8.31065142]
[1743023187935,11.306877,2013.2,2012.8,8.31065142]
[1743023188135,0.1137201,2012.9,2012.8,8.31065142]
[1743023188358,11.306877,2013.2,2012.8,8.31065142]
[1743023188560,0.1137201,2012.9,2012.8,8.31065142]
[1743023188743,11.306877,2013.2,2012.8,8.31065142]
[1743023188942,0.1137201,2012.9,2012.8,8.31065142]
[1743023189143,11.306877,2013.2,2012.8,8.31065142]
[1743023189372,0.1137201,2012.9,2012.8,8.31065142]
[1743023189556,6.339487,2013.2,2012.8,8.31065142]
[1743023189757,0.1137201,2012.9,2012.8,8.31065142]
[1743023189955,6.339487,2013.2,2012.8,8.31065142]
[1743023190155,0.1137201,2012.9,2012.8,8.31065142]
[1743023190356,6.339487,2013.2,2012.8,8.31065142]
[1743023190581,0.1137201,2012.9,2012.8,8.31065142]
[1743023190740,6.339487,2013.2,2012.8,8.31065142]
[1743023190943,0.1137201,2012.9,2012.8,8.31065142]
[1743023191140,6.339487,2013.2,2012.8,8.31065142]
[1743023191361,0.1137201,2012.9,2012.8,8.31065142]
[1743023191561,6.339487,2013.2,2012.8,8.31065142]
[1743023191735,0.1137201,2012.9,2012.8,8.31065142]
[1743023191937,4.96723,2013.2,2012.8,8.31065142]
[1743023192138,0.1137201,2012.9,2012.8,8.31065142]
[1743023192337,4.96755,2013.1,2012.8,8.31065142]
[1743023192537,0.1137201,2012.9,2012.8,8.31065142]
[1743023192781,4.96755,2013.1,2012.8,8.31065142]
[1743023193258,0.1137201,2013.0,2012.8,8.31065142]
[1743023193880,0.1137201,2013.0,2012.0,1.67012255]
[1743023193881,4.9682,2012.8,2012.0,1.67012255]
[1743023194176,4.9682,2012.8,2011.8,11.16023945]
[1743023194177,4.96953,2012.3,2011.9,3.34257142]
[1743023194343,4.96968,2012.2,2011.9,3.34257142]
[1743023194550,6.07616755,2012.2,2011.9,3.34257142]
[1743023195339,6.07616755,2012.2,2011.8,10.0]
[1743023196874,6.07616755,2012.2,2011.8,13.34257142]
[1743023197065,6.87496755,2012.2,2011.8,13.34257142]
[1743023197460,6.87496755,2012.2,2011.8,18.31322142]
[1743023197660,6.87496755,2012.2,2011.8,23.28377142]
[1743023197867,6.87496755,2012.2,2011.9,8.31297142]
[1743023198172,6.87496755,2012.2,2011.9,3.34257142]
[1743023198374,5.88104655,2012.2,2011.9,3.34257142]
[1743023203585,0.11256655,2012.2,2012.0,3.34257142]
[1743023203792,0.11256655,2012.2,2012.1,9.16690142]
[1743023203957,5.7941,2012.5,2012.1,9.16675142]
[1743023204162,0.10534079,2012.2,2012.1,10.79392]
[1743023204479,12.71073,2012.6,2012.1,10.79392]
[1743023204480,17.67959,2012.6,2012.2,4.96956]
[1743023206895,17.67959,2012.6,2012.1,10.85424497]
[1743023207488,4.969,2012.5,2012.1,10.85424497]
[1743023207876,9.93814,2012.5,2012.1,5.88450497]
[1743023208378,4.969,2012.5,2012.1,5.88450497]
[1743023208580,4.742,2012.6,2012.2,3.34257142]
[1743023208757,6.401555,2012.6,2012.2,3.34257142]
[1743023208953,4.96927,2012.4,2012.2,3.34257142]
[1743023209584,9.93862,2012.4,2012.2,3.34257142]
[1743023210392,4.96943,2012.3,2012.2,3.34257142]
[1743023210576,4.96943,2012.3,2012.1,4.19697142]
[1743023213901,0.10544139,2012.2,2012.1,4.19697142]
[1743023215406,5.07512139,2012.2,2012.1,0.07]
[1743023215697,5.58260853,2012.2,2012.1,0.07]
[1743023216691,5.07512139,2012.2,2012.1,0.07]
[1743023236886,10.8611843,2012.2,2012.1,1e-05]
[1743023237086,4.97141,2011.5,2011.4,2.79236291]
[1743023237292,5.07424099,2011.5,2011.4,2.79236291]
[1743023237613,5.07424099,2011.5,2011.4,0.7842]
[1743023237776,5.07424099,2011.5,2011.2,17.48264063]
[1743023237984,4.97184,2011.4,2011.3,2.00816291]
[1743023238614,5.07467099,2011.4,2011.3,2.55816291]
[1743023238914,4.9719,2011.3,2010.8,0.8317]
[1743023239116,4.26995912,2011.4,2010.8,0.8317]
[1743023239117,4.97289,2010.9,2010.8,0.8317]
[1743023239284,4.97289,2010.9,2010.6,0.9484669]
[1743023239285,4.97339,2010.7,2010.6,0.9484669]
[1743023239488,4.97339,2010.7,2010.6,14.6167669]
[1743023239489,5.07310716,2010.7,2010.6,14.6167669]
[1743023240387,5.07310716,2010.7,2010.6,0.1167669]
[1743023241712,4.97339,2010.7,2010.6,0.1167669]
[1743023242301,4.97291,2010.9,2010.6,0.1167669]
[1743023242505,4.97316,2010.8,2010.6,0.0667669]
[1743023244220,4.97316,2010.8,2010.7,14.5]
[1743023251610,4.97316,2010.8,2010.6,0.0667669]
[1743023252125,4.97316,2010.8,2010.6,14.5667669]
[1743023252503,9.94647,2010.8,2010.6,14.5667669]
[1743023253333,4.97339,2010.7,2010.6,14.5667669]
[1743023256337,4.97339,2010.7,2010.6,0.0667669]
[1743023258816,4.97316,2010.8,2010.6,0.0667669]
[1743023259018,4.97316,2010.8,2010.6,3.41659503]
[1743023259436,9.94645,2010.8,2010.6,3.41659503]
[1743023261534,9.94645,2010.8,2010.6,17.91659503]
[1743023261738,9.94645,2010.8,2010.6,14.5667669]
[1743023262537,9.94645,2010.8,2010.6,0.0667669]
[1743023264027,4.97339,2010.7,2010.6,3.41659503]
[1743023264937,4.97316,2010.8,2010.6,3.41659503]
[1743023268140,4.97316,2010.8,2010.6,17.91659503]
[1743023269849,4.97316,2010.8,2010.7,3.34982813]
[1743023270444,4.97244,2011.1,2010.8,4.97313]
[1743023270638,5.77437,2011.2,2011.0,3.34982813]
[1743023270842,4.97237,2011.2,2011.0,3.34982813]
[1743023271042,4.97193,2011.3,2011.1,3.34982813]
[1743023271242,4.97193,2011.3,2011.2,3.34982813]
[1743023271424,4.97193,2011.3,2011.1,3.34982813]
[1743023272247,9.94401,2011.3,2011.1,3.34982813]
[1743023272443,11.488791,2011.3,2011.0,18.67362813]
[1743023272651,6.516731,2011.3,2011.0,18.67362813]
[1743023273240,11.488791,2011.3,2011.0,18.67362813]
[1743023273939,6.516731,2011.3,2011.0,18.67362813]
[1743023275249,6.516731,2011.3,2011.0,4.17362813]
[1743023275450,11.488821,2011.3,2011.0,4.17362813]
[1743023276449,6.516731,2011.3,2011.0,4.17362813]
[1743023276617,4.97193,2011.3,2011.0,4.17362813]
[1743023276813,9.94399,2011.3,2011.0,4.17362813]